bitfinex/quotes_ETHUSD_20220123
["timestamp","ask_amount","ask_price","bid_price","bid_amount"]
[1642899354970,0.30284212,2447.3,2446.9,0.00267974]
[1642899355165,0.38969393,2447.3,2446.9,0.00267974]
[1642899355371,0.68969393,2447.3,2446.9,0.00267974]
[1642899355969,0.00284212,2447.3,2446.9,0.00267974]
[1642899358612,5.52496821,2447.2,2446.3,0.00284212]
[1642899358798,0.30534088,2447.1,2446.3,0.00284212]
[1642899358997,0.492,2447.0,2446.0,3.47826846]
[1642899359199,0.49313685,2447.0,2446.0,3.48281585]
[1642899359400,0.49313685,2447.0,2446.1,3.48224742]
[1642899359401,1.0231352,2446.7,2446.1,3.48224742]
[1642899359606,1.0,2446.9,2446.1,3.48224742]
[1642899359799,0.49313685,2447.0,2446.2,23.92341054]
[1642899359800,0.00113685,2447.0,2446.2,23.92341054]
[1642899359998,0.00113685,2447.0,2446.3,5.91528211]
[1642899360299,0.00113685,2447.0,2446.4,5.85854962]
[1642899360499,0.00113685,2447.0,2446.9,1.13749205]
[1642899362000,0.00113685,2447.0,2446.5,0.00170527]
[1642899362456,0.00113685,2447.0,2446.2,3.4813878]
[1642899362650,0.00113685,2447.0,2446.3,0.00284212]
[1642899363048,0.00113685,2447.0,2446.6,1.30186301]
[1642899363252,0.00113685,2447.0,2446.7,3.47797726]
[1642899363753,3.0689913,2447.8,2447.0,0.0022737]
[1642899363955,0.6154239,2447.9,2447.0,0.0022737]
[1642899364156,0.00113684,2447.2,2447.0,0.0022737]
[1642899364359,0.00113684,2447.2,2447.0,3.48025096]
[1642899364551,1.02267,2448.0,2447.0,3.48025096]
[1642899364552,1.40356104,2447.5,2447.0,3.48025096]
[1642899364758,1.40356104,2447.5,2447.0,0.0022737]
[1642899364952,0.00227369,2447.4,2447.0,0.0022737]
[1642899365351,0.492,2447.9,2447.0,0.0022737]
[1642899365352,0.00170527,2447.3,2447.0,0.0022737]
[1642899365753,0.20860738,2447.8,2447.0,0.0022737]
[1642899366189,0.00397896,2447.7,2447.3,1.39758136]
[1642899366591,0.00341054,2447.6,2447.3,1.39758136]
[1642899366987,0.00284211,2447.5,2447.3,1.39758136]
[1642899367393,0.00227369,2447.4,2447.0,0.0022737]
[1642899367788,0.00170527,2447.3,2447.0,0.0022737]
[1642899368190,0.00454738,2447.8,2447.0,0.0022737]
[1642899368388,0.00454738,2447.8,2447.0,1.23968868]
[1642899368591,1.42841125,2447.6,2447.1,3.47751019]
[1642899368891,0.00284211,2447.5,2447.1,3.47751019]
[1642899369391,1.42841125,2447.6,2447.1,3.47751019]
[1642899369392,0.00227369,2447.4,2447.1,3.47751019]
[1642899369591,2.2493671,2448.0,2447.1,3.47751019]
[1642899369592,2.2493671,2448.0,2447.9,0.39995051]
[1642899369848,2.25,2447.9,2447.2,0.00113685]
[1642899370044,0.00227369,2447.8,2447.2,0.00113685]
[1642899370241,3.13169393,2447.9,2447.1,3.47930946]
[1642899370441,0.00170527,2447.7,2447.2,0.00113685]
[1642899370841,0.00113685,2447.6,2447.2,0.00113685]
[1642899371240,0.00113685,2447.6,2447.1,0.00170527]
[1642899371441,1.0228086,2447.5,2447.1,0.00170527]
[1642899381288,0.3,2447.4,2447.1,0.00170527]
[1642899381489,0.99606,2447.4,2447.1,0.00170527]
[1642899381688,0.99606,2447.4,2446.9,1.39221182]
[1642899381891,0.99606,2447.4,2446.6,0.25]
[1642899381892,0.00378896,2447.2,2446.6,0.25]
[1642899382095,8.7672464,2447.0,2445.9,0.00234822]
[1642899382293,8.7672464,2447.0,2445.6,3.47892205]
[1642899382294,1.58419342,2445.8,2445.6,3.47892205]
[1642899382492,1.23260395,2445.8,2445.7,3.47919513]
[1642899382690,1.23260395,2445.8,2445.1,1.49463338]
[1642899382691,0.492,2445.7,2445.1,0.00235559]
[1642899382891,0.69606,2445.7,2445.1,0.00235559]
[1642899383095,0.492,2445.7,2445.2,0.00852636]
[1642899383494,0.492,2445.7,2445.0,0.0096632]
[1642899383694,0.492,2445.7,2444.9,1.50250942]
[1642899383893,0.492,2445.7,2444.9,0.01023163]
[1642899384095,0.492,2445.7,2445.0,0.0096632]
[1642899385644,0.492,2445.7,2444.7,0.01136847]
[1642899385841,0.492,2445.7,2444.8,0.01080005]
[1642899385842,0.69606,2445.7,2444.8,0.01080005]
[1642899386047,0.69606,2445.7,2444.7,0.01136847]
[1642899386048,0.3,2445.6,2444.7,0.01136847]
[1642899386342,0.3,2445.6,2444.3,0.30169997]
[1642899386343,2.1407015,2445.1,2444.5,0.01250532]
[1642899386544,0.492,2445.0,2444.5,0.01250532]
[1642899386748,0.492,2445.0,2444.4,0.01307374]
[1642899387149,0.392,2445.0,2444.4,0.01307374]
[1642899387944,0.342,2445.0,2444.4,0.01307374]
[1642899388890,1.51957626,2444.7,2444.4,0.01307374]
[1642899389298,0.492,2444.6,2444.4,0.01307374]
[1642899389493,2.1536318,2445.1,2444.9,1.52316252]
[1642899389696,0.492,2444.6,2444.0,0.01534744]
[1642899389894,2.1536318,2445.1,2444.7,0.98399999]
[1642899390096,2.1536318,2445.1,2443.9,0.01288813]
[1642899390097,1.17789716,2444.4,2443.6,3.7859]
[1642899390293,1.17789716,2444.4,2443.8,1.5]
[1642899390294,0.492,2444.3,2443.8,1.5]
[1642899390697,0.492,2444.3,2443.9,0.01591586]
[1642899390896,1.85,2444.2,2443.3,3.8517]
[1642899391095,0.492,2444.1,2443.7,1.5]
[1642899391294,0.49313685,2444.1,2443.7,1.5]
[1642899391698,0.69719685,2444.1,2443.7,1.5]
[1642899391896,0.69719685,2444.1,2443.4,0.00284212]
[1642899392097,1.02434,2444.0,2443.4,0.00284212]
[1642899392359,0.00113685,2444.1,2443.0,0.01241671]
[1642899392546,0.00113685,2444.1,2443.6,1.26098148]
[1642899392949,0.00113685,2444.1,2443.7,0.00113685]
[1642899394247,0.00113685,2444.1,2444.0,1.3576105]
[1642899395452,0.62837381,2445.3,2444.1,2.6022737]
[1642899395757,0.00227369,2444.5,2444.2,2.78655966]
[1642899395956,0.00227369,2444.5,2444.3,23.92]
[1642899396208,1.51566,2445.8,2444.4,2.98255335]
[1642899396408,1.51566,2445.8,2444.9,1.3293389]
[1642899396609,0.30852635,2445.6,2444.9,1.3293389]
[1642899397010,0.00795792,2445.5,2444.9,1.3293389]
[1642899397309,0.0073895,2445.4,2444.9,1.3293389]
[1642899397708,0.3,2445.6,2444.9,1.3293389]
[1642899397709,0.00682108,2445.3,2444.9,1.3293389]
[1642899398109,2.046984,2446.1,2444.9,1.3293389]
[1642899398110,0.00625265,2445.2,2444.9,1.3293389]
[1642899398408,1.51547,2446.1,2444.9,1.3293389]
[1642899398409,0.00568423,2445.1,2444.9,1.3293389]
[1642899398809,0.00511581,2445.0,2444.9,3.3793389]
[1642899399010,0.00511581,2445.0,2444.9,5.9039441]
[1642899400245,0.00511581,2445.0,2444.9,1.3293389]
[1642899402947,0.00511581,2445.0,2444.9,3.8293389]
[1642899404196,0.00511581,2445.0,2444.9,1.2793389]
[1642899407206,0.00511581,2445.0,2444.9,25.1993389]
[1642899407640,1.581e-05,2445.0,2444.9,24.22]
[1642899407840,1.581e-05,2445.0,2444.9,27.99929419]
[1642899408039,0.04,2446.6,2445.0,0.00078419]
[1642899408240,0.04,2446.6,2445.1,0.1635]
[1642899408441,0.00852635,2446.5,2445.2,3.6132]
[1642899408639,0.00852635,2446.5,2445.3,23.92]
[1642899408839,0.00795793,2446.4,2445.3,23.92]
[1642899409241,0.0073895,2446.3,2445.8,1.28042971]
[1642899409641,0.00682108,2446.2,2445.8,1.28042971]
[1642899410041,7.52,2446.6,2446.2,0.01364216]
[1642899410441,0.00170527,2446.5,2446.2,0.01364216]
[1642899410843,0.00113685,2446.4,2446.2,0.01364216]
[1642899411302,2.70406,2446.3,2446.2,0.01364216]
[1642899411502,3.58291181,2446.3,2446.2,0.01364216]
[1642899411899,3.58291181,2446.3,2445.9,0.00170527]
[1642899412300,1.20006114,2446.1,2445.3,0.00511581]
[1642899412505,1.50006114,2446.1,2445.3,0.00511581]
[1642899412701,0.492,2446.3,2445.3,0.00511581]
[1642899413003,0.492,2446.3,2445.2,0.00568424]
[1642899413402,0.492,2446.3,2445.1,0.00625266]
[1642899413602,0.492,2446.3,2445.4,1.431068]
[1642899414001,0.00113685,2446.4,2445.5,0.00397897]
[1642899414854,1.41163202,2446.4,2445.5,0.00397897]
[1642899415242,0.00113685,2446.4,2445.5,0.00397897]
[1642899416644,1.24214706,2446.4,2445.5,0.00397897]
[1642899417746,2.46952706,2446.4,2445.5,0.00397897]
[1642899417949,0.10863867,2446.3,2445.5,0.00397897]
[1642899418146,0.02152335,2446.1,2445.1,0.00625266]
[1642899418450,0.492,2446.0,2445.1,0.00625266]
[1642899418719,1.30830693,2445.8,2445.1,0.00625266]
[1642899420322,1.90830693,2445.8,2445.1,0.00625266]
[1642899421423,2.11236693,2445.8,2445.1,0.00625266]
[1642899422842,0.80406,2445.8,2445.1,0.00625266]
[1642899423044,0.50406,2445.8,2445.1,0.00625266]
[1642899423444,0.80406,2445.8,2445.1,0.00625266]
[1642899423646,1.02365,2445.6,2445.1,0.00625266]
[1642899423846,0.99606,2445.5,2445.1,0.00625266]
[1642899424044,1.29606,2445.5,2445.1,0.00625266]
[1642899424245,2.38291181,2445.5,2445.1,0.00625266]
[1642899424448,0.08685181,2445.4,2445.1,0.00625266]
[1642899424653,0.08685181,2445.4,2445.0,0.00078419]
[1642899424654,1.65,2445.2,2445.0,0.00078419]
[1642899424948,0.492,2445.2,2445.0,0.00078419]
[1642899425546,0.792,2445.2,2445.0,0.00078419]
[1642899425847,0.20406,2445.1,2445.0,0.00078419]
[1642899426697,0.492,2445.2,2445.0,0.00078419]
[1642899427098,0.00113685,2445.3,2445.0,0.00078419]
[1642899428398,0.00113685,2445.3,2445.0,1.14036285]
[1642899429001,0.00113685,2445.3,2445.1,3.47981581]
[1642899429200,0.00113685,2445.3,2445.0,1.14036285]
[1642899430149,0.69606,2445.9,2445.3,0.0022737]
[1642899430350,0.492,2445.9,2445.3,0.0022737]
[1642899430552,0.00284211,2445.8,2445.3,0.0022737]
[1642899430853,1.1932,2446.1,2445.3,0.0022737]
[1642899430854,0.00227369,2445.7,2445.3,0.0022737]
[1642899431252,0.00170527,2445.6,2445.5,1.49966844]
[1642899431854,0.00170527,2445.6,2445.3,0.0022737]
[1642899432360,0.00113684,2445.5,2445.3,0.0022737]
[1642899432751,0.00227369,2445.7,2445.3,0.0022737]
[1642899433153,0.00170527,2445.6,2445.3,0.0022737]
[1642899433600,0.00113684,2445.5,2445.3,0.0022737]
[1642899434101,0.00170527,2445.6,2445.3,0.0022737]
[1642899434401,0.00113684,2445.5,2445.3,0.0022737]
[1642899435005,0.20406,2445.4,2445.3,0.0022737]
[1642899436803,3.70406,2445.4,2445.3,0.0022737]
[1642899437003,4.00406,2445.4,2445.3,0.0022737]
[1642899437203,5.00406,2445.4,2445.3,0.0022737]
[1642899437863,3.70406,2445.4,2445.3,0.0022737]
[1642899438065,0.00113684,2445.5,2445.3,0.0022737]
[1642899439166,0.00113684,2445.5,2445.4,1.19126184]
[1642899441502,0.00113684,2445.5,2445.4,4.67056819]
[1642899441701,3.684e-05,2445.5,2445.4,3.47930635]
[1642899441907,3.684e-05,2445.5,2445.4,5.07930635]
[1642899442103,3.684e-05,2445.5,2445.4,28.99930635]
[1642899442603,3.684e-05,2445.5,2445.4,35.7945375]
[1642899442806,1.7038267,2446.5,2445.4,35.7945375]
[1642899442807,1.7038267,2446.5,2445.6,23.92]
[1642899443008,1.7038267,2446.5,2445.8,1.35970018]
[1642899443203,2.22475571,2447.5,2446.2,2.6]
[1642899443402,2.22475571,2447.5,2446.3,2.62713651]
[1642899443607,0.00341054,2447.0,2446.3,3.22713651]
[1642899443806,0.00341054,2447.0,2446.4,4.47930635]
[1642899444001,0.00284211,2446.9,2446.6,0.3]
[1642899444203,0.00284211,2446.9,2446.7,2.76458549]
[1642899444404,0.04,2447.5,2446.6,1.38960907]
[1642899444405,0.00227369,2446.8,2446.6,1.38960907]
[1642899444703,0.00170527,2446.7,2446.3,4.06309997]
[1642899445155,0.04,2447.5,2446.3,4.06309997]
[1642899445156,0.00113684,2446.6,2446.3,4.06309997]
[1642899445356,0.00113684,2446.6,2446.3,3.9249]
[1642899445553,0.00113684,2446.6,2445.9,0.00284212]
[1642899445554,0.492,2447.0,2445.9,0.00284212]
[1642899445752,0.492,2446.9,2445.9,0.00284212]
[1642899445959,0.492,2446.8,2445.7,8.58703308]
[1642899446152,0.5811255,2446.8,2445.8,3.48217135]
[1642899446449,0.5811255,2446.8,2445.9,0.00284212]
[1642899446450,0.00170527,2446.7,2445.9,0.00284212]
[1642899446650,0.492,2446.6,2445.9,0.00284212]
[1642899446850,0.49313684,2446.6,2445.8,0.00341055]
[1642899447652,0.49313684,2446.6,2445.8,3.4822095]
[1642899447955,0.49313684,2446.6,2445.9,0.00284212]
[1642899448351,0.49313684,2446.6,2445.7,0.00397897]
[1642899448998,0.49313684,2446.6,2445.6,1.33220393]
[1642899449199,1.26625606,2446.4,2445.7,0.00397897]
[1642899449499,0.492,2446.3,2445.7,0.00397897]
[1642899449901,0.492,2446.3,2445.6,3.48365487]
[1642899450103,0.492,2446.3,2445.7,0.00397897]
[1642899450906,0.99606,2446.3,2445.7,0.00397897]
[1642899451104,1.02345,2446.2,2445.7,0.00397897]
[1642899451301,0.492,2446.1,2445.0,0.00078419]
[1642899451601,1.26432796,2445.9,2445.1,0.00284212]
[1642899451800,0.492,2445.8,2445.1,0.00284212]
[1642899452006,0.49313684,2445.8,2445.1,0.00284212]
[1642899452851,0.69719684,2445.8,2445.1,0.00284212]
[1642899453257,0.49313684,2445.8,2445.1,0.00284212]
[1642899453453,0.79313684,2445.8,2445.1,0.00284212]
[1642899453852,1.79313684,2445.8,2445.1,0.00284212]
[1642899454051,1.49313684,2445.8,2445.1,1.3697406]
[1642899454457,0.49313684,2445.8,2445.2,0.0022737]
[1642899454653,1.49313684,2445.8,2445.2,0.0022737]
[1642899454854,0.49313684,2445.8,2445.2,0.0022737]
[1642899455056,1.49313684,2445.8,2445.2,0.0022737]
[1642899455355,1.31460001,2445.7,2445.2,0.0022737]
[1642899455561,0.492,2445.6,2445.2,0.0022737]
[1642899455759,0.57885181,2445.6,2445.2,0.0022737]
[1642899456105,1.4726827,2445.1,2445.0,0.00078419]
[1642899456602,1.4726827,2445.1,2445.0,0.00192103]
[1642899457001,1.792,2445.3,2445.0,0.00192103]
[1642899457206,1.092,2445.3,2445.0,0.00192103]
[1642899458604,0.492,2445.3,2445.0,0.00192103]
[1642899459005,0.792,2445.3,2445.0,0.00192103]
[1642899459406,1.02387,2445.2,2445.0,0.00192103]
[1642899459865,0.3,2445.1,2445.0,0.00192103]
[1642899460047,1.49001251,2445.1,2445.0,0.00192103]
[1642899460449,2.49001251,2445.1,2445.0,0.00192103]
[1642899460654,1.99606,2445.1,2445.0,2.103e-05]
[1642899460861,4.64821,2445.0,2444.1,0.0022737]
[1642899461057,4.64821,2445.0,2444.2,0.00454739]
[1642899461058,1.69606,2444.9,2444.2,0.00454739]
[1642899461250,0.01294433,2444.7,2444.1,0.0022737]
[1642899461452,1.02428,2444.5,2444.1,0.0022737]
[1642899461649,1.1811001,2444.0,2443.3,3.48196977]
[1642899461849,0.492,2443.9,2443.3,3.48196977]
[1642899462149,0.492,2443.9,2443.4,0.00454739]
[1642899462351,0.492,2443.9,2443.4,3.48651716]
[1642899462549,0.492,2443.9,2443.4,0.00454739]
[1642899462748,0.492,2443.9,2443.5,0.00397896]
[1642899462948,0.492,2443.9,2443.2,3.48765401]
[1642899463150,0.492,2443.9,2443.3,3.48708558]
[1642899463369,0.492,2444.1,2443.9,0.98399999]
[1642899463806,0.492,2444.1,2444.0,0.00113685]
[1642899465005,0.492,2444.1,2444.0,0.00381316]
[1642899465610,0.00113685,2444.4,2444.0,0.00381316]
[1642899467456,1.00113685,2444.4,2444.0,0.00381316]
[1642899467855,1.00113685,2444.4,2443.9,0.29360819]
[1642899467856,2.6,2444.2,2443.9,0.29360819]
[1642899468053,2.10406,2444.0,2443.9,0.29360819]
[1642899468254,0.69606,2444.0,2443.9,8.19e-06]
[1642899468455,0.69606,2444.0,2442.9,3.48225339]
[1642899468756,0.99606,2444.0,2443.0,0.00568423]
[1642899468951,0.99606,2444.0,2443.1,3.48225339]
[1642899469156,1.02447,2443.8,2443.0,0.00568423]
[1642899469354,1.10973248,2443.4,2443.2,0.00454739]
[1642899469553,0.492,2443.3,2442.8,0.00682108]
[1642899469752,0.492,2443.3,2442.6,3.4826405]
[1642899469753,0.492,2443.3,2442.6,0.00795793]
[1642899469951,0.492,2443.3,2442.7,3.4901186]
[1642899470155,0.492,2443.3,2442.6,0.00795793]
[1642899470354,0.492,2443.3,2442.8,0.00682108]
[1642899470556,0.792,2443.3,2442.6,0.00795793]
[1642899470754,0.792,2443.3,2442.6,1.4938044]
[1642899470954,1.092,2443.3,2442.6,1.4938044]
[1642899471204,1.092,2443.3,2442.7,3.49010604]
[1642899471511,1.092,2443.3,2442.8,0.00682108]
[1642899471904,1.092,2443.3,2442.7,0.0073895]
[1642899472107,0.492,2443.3,2442.7,0.0073895]
[1642899472713,0.492,2443.3,2442.6,0.00795793]
[1642899473904,0.792,2443.3,2442.5,1.3983636]
[1642899474110,0.792,2443.3,2442.3,3.6179]
[1642899474405,0.792,2443.3,2442.4,0.00113684]
[1642899474406,0.00341054,2443.2,2442.4,0.00113684]
[1642899474609,1.02475,2443.0,2442.4,0.00113684]
[1642899474871,1.02475,2443.0,2441.7,0.00235559]
[1642899474872,2.6,2442.8,2441.7,0.00235559]
[1642899475057,1.21738127,2442.4,2441.8,0.00341054]
[1642899475256,0.492,2442.3,2441.8,0.00341054]
[1642899475461,2.0163,2442.3,2441.8,0.00341054]
[1642899475660,2.0163,2442.3,2441.4,5.02133852]
[1642899475661,4.3413728,2442.3,2441.5,0.00511581]
[1642899476056,0.20406,2442.2,2441.5,0.00511581]
[1642899476258,0.492,2442.1,2441.5,0.00511581]
[1642899476856,0.792,2442.1,2441.5,0.00511581]
[1642899477159,0.20406,2442.0,2441.4,0.00568424]
[1642899477356,0.492,2441.9,2441.4,0.00568424]
[1642899477554,0.492,2441.9,2441.3,0.2105558]
[1642899477555,1.5172972,2441.9,2441.3,0.2105558]
[1642899477756,0.3022737,2441.8,2441.3,0.2105558]
[1642899477957,0.492,2441.7,2441.3,0.2105558]
[1642899478156,0.69776527,2441.7,2441.3,0.2105558]
[1642899478360,0.00113685,2441.6,2441.4,1.3959343]
[1642899478610,0.492,2442.3,2441.6,2.2522737]
[1642899478808,0.492,2442.3,2441.6,4.67665079]
[1642899479007,0.00227369,2442.0,2441.8,0.01214206]
[1642899479213,0.60330493,2443.3,2442.0,0.01612326]
[1642899479410,2.47866,2443.7,2443.2,1.52918581]
[1642899479411,2.2746,2443.7,2443.2,1.52918581]
[1642899479612,2.2746,2443.7,2442.5,0.01218676]
[1642899479810,2.47866,2443.7,2442.5,0.01218676]
[1642899480007,1.02436,2443.8,2442.5,0.01218676]
[1642899480409,0.0096632,2443.7,2442.5,0.01218676]
[1642899480608,0.0096632,2443.7,2443.1,1.31978941]
[1642899480807,0.00909478,2443.6,2443.1,1.31978941]
[1642899481208,0.00852636,2443.5,2443.1,1.31978941]
[1642899481609,0.00795793,2443.4,2443.1,1.31978941]
[1642899482013,0.00738951,2443.3,2443.1,1.31978941]
[1642899482457,0.00682108,2443.2,2443.1,1.31978941]
[1642899483351,1.02436,2443.8,2443.5,0.01364216]
[1642899483757,1.02421,2444.3,2443.7,1.39411587]
[1642899483955,5.07334571,2444.8,2443.7,1.40655351]
[1642899483956,0.04,2444.8,2443.7,1.40655351]
[1642899484154,0.04,2444.8,2443.8,2.63835565]
[1642899484755,0.04,2444.8,2444.4,1.21642201]
[1642899484951,0.04,2444.8,2443.7,0.01243764]
[1642899486202,0.04,2444.8,2443.8,1.20314703]
[1642899486203,1.54912049,2444.7,2443.8,1.20314703]
[1642899486403,0.04,2444.8,2443.8,1.20314703]
[1642899486604,0.00795793,2444.6,2443.8,1.20314703]
[1642899486803,0.30795793,2444.6,2443.8,1.20314703]
[1642899487009,0.00738951,2444.5,2443.8,1.20314703]
[1642899487504,0.00682109,2444.4,2444.2,1.29508655]
[1642899487904,0.00625266,2444.3,2444.2,1.29508655]
[1642899488505,0.00625266,2444.3,2444.2,3.81922099]
[1642899488704,0.00625266,2444.3,2444.2,1.29508655]
[1642899488904,0.00625266,2444.3,2444.2,3.89508655]
[1642899489306,0.00625266,2444.3,2444.2,6.37642886]
[1642899489510,5.266e-05,2444.3,2444.2,6.37642886]
[1642899489707,5.266e-05,2444.3,2444.2,6.68884175]
[1642899489962,0.04,2445.3,2444.3,2.6]
[1642899490167,0.04,2445.3,2444.4,4.53278537]
[1642899490361,7.37e-05,2444.7,2444.5,3.50312404]
[1642899490567,0.04,2445.3,2444.8,25.27016723]
[1642899490764,0.04,2445.3,2444.9,2.69845011]
[1642899490964,0.00284211,2445.2,2444.9,2.69845011]
[1642899491360,0.04,2445.7,2445.0,2.6]
[1642899491570,0.04,2445.7,2444.8,1.35016723]
[1642899491763,0.00284212,2445.6,2444.8,1.35016723]
[1642899492067,0.00284212,2445.6,2444.7,0.0007263]
[1642899492068,0.00227369,2445.5,2444.9,0.00113685]
[1642899492462,0.00170527,2445.4,2444.8,0.00170527]
[1642899492662,0.00170527,2445.4,2444.8,0.01448344]
[1642899492864,0.04,2445.7,2444.8,0.01448344]
[1642899492865,0.00113685,2445.3,2444.8,0.01448344]
[1642899493064,0.00113685,2445.3,2445.0,1.25867001]
[1642899493262,0.00227369,2445.5,2445.1,2.49920319]
[1642899493463,7.369e-05,2445.7,2445.2,2.6]
[1642899493712,7.52,2446.6,2445.7,0.02554458]
[1642899494008,7.52,2446.6,2445.8,0.01422791]
[1642899494210,7.52,2446.6,2445.8,0.89822791]
[1642899494411,0.62651119,2447.3,2446.0,2.61285071]
[1642899494729,0.04,2447.5,2446.9,1.4478403]
[1642899495308,0.01080005,2447.4,2446.3,2.89564413]
[1642899495510,0.01080005,2447.4,2446.0,0.17615071]
[1642899495707,7.49023163,2447.3,2445.8,1.276]
[1642899495909,8.36908344,2447.3,2445.8,0.06]
[1642899496110,1.0096632,2447.2,2445.8,0.06]
[1642899496308,1.22408897,2446.8,2445.6,2.42547726]
[1642899496511,1.22408897,2446.8,2445.9,1.54939519]
[1642899496709,0.00682109,2446.7,2446.1,0.01221103]
[1642899497109,0.12685181,2447.5,2446.1,0.01221103]
[1642899497110,0.00625266,2446.6,2446.1,0.01221103]
[1642899497557,0.00568424,2446.5,2446.4,1.48615919]
[1642899498754,0.00568424,2446.5,2446.4,3.28615919]
[1642899499960,0.04,2447.5,2446.5,2.61136848]
[1642899500155,0.04,2447.5,2446.5,5.02147524]
[1642899500356,0.00511581,2447.4,2446.5,5.05068109]
[1642899500555,0.00511581,2447.4,2446.5,2.61136848]
[1642899500757,0.00454739,2447.3,2446.5,2.61136848]
[1642899500955,0.00454739,2447.3,2446.9,1.53886253]
[1642899501218,0.00397896,2447.2,2446.9,1.53886253]
[1642899501413,0.00397896,2447.2,2446.5,2.61136848]
[1642899501612,0.00341054,2447.1,2446.5,2.61136848]
[1642899502011,0.00284212,2447.0,2446.5,2.61136848]
[1642899502212,0.00284212,2447.0,2446.6,2.66407469]
[1642899502412,0.00227369,2446.9,2446.5,2.61136848]
[1642899502814,0.00170527,2446.8,2446.5,2.91136848]
[1642899503015,5.27e-06,2446.8,2446.6,3.06189137]
[1642899503216,0.04,2447.5,2446.8,0.0008]
[1642899503414,0.6065349,2448.3,2447.9,0.2400158]
[1642899504015,0.6065349,2448.3,2446.8,0.0608]
[1642899504016,3.092,2448.1,2446.8,0.0008]
[1642899504217,1.0228,2447.9,2446.8,0.0008]
[1642899504415,4.13583946,2447.8,2446.8,0.0008]
[1642899504613,0.69626,2447.8,2446.8,0.0008]
[1642899504858,0.00512108,2447.7,2446.8,0.0008]
[1642899505054,0.492,2447.6,2446.8,1.15307199]
[1642899505257,0.49655266,2447.6,2446.8,1.15307199]
[1642899505454,0.00398423,2447.5,2446.8,1.15307199]
[1642899505657,0.49598423,2447.5,2446.8,1.15307199]
[1642899505853,0.00341581,2447.4,2446.8,1.15307199]
[1642899506253,0.00284739,2447.3,2446.8,1.15307199]
[1642899506454,0.00284739,2447.3,2446.8,0.0008]
[1642899506657,0.49427896,2447.2,2446.8,0.0008]
[1642899506856,3.33128636,2447.1,2446.8,0.0008]
[1642899507055,2.60426,2446.9,2446.8,0.0008]
[1642899507260,3.39626,2446.9,2446.8,0.0008]
[1642899507458,3.39626,2446.9,2446.6,0.00113158]
[1642899507459,3.06215705,2446.8,2446.6,0.00113158]
[1642899507657,0.492,2446.7,2446.6,0.00113158]
[1642899508056,0.00114212,2447.0,2446.6,0.00113158]
[1642899510415,0.00114212,2447.0,2446.9,1.34945016]
[1642899511615,0.00114212,2447.0,2446.9,4.00945016]
[1642899512009,0.00831678,2448.2,2447.0,2.6]
[1642899512212,0.00257471,2448.4,2447.2,23.95079895]
[1642899512468,0.00257471,2448.4,2448.2,1.20463336]
[1642899512864,0.532,2449.1,2448.2,1.20463336]
[1642899513066,0.532,2449.1,2447.6,0.06]
[1642899513264,0.01136847,2449.0,2447.6,0.06]
[1642899513663,0.01136847,2449.0,2447.5,3.6979]
[1642899513664,1.02235,2448.8,2447.5,3.6979]
[1642899513865,1.02235,2448.8,2447.0,2.3701]
[1642899513866,27.99816238,2448.7,2446.6,1.25313158]
[1642899514067,1.0,2448.6,2446.8,3.7902]
[1642899514265,4.2151854,2448.5,2446.8,3.79133685]
[1642899514467,0.50052635,2448.5,2446.9,0.06]
[1642899514666,1.00795792,2448.4,2446.8,27.72343749]
[1642899514866,0.492,2448.3,2446.9,0.06]
[1642899515068,0.4993895,2448.3,2446.9,0.06]
[1642899515268,0.00682108,2448.2,2448.0,1.36610161]
[1642899515673,0.04257471,2449.1,2448.0,1.36610161]
[1642899515674,0.00625265,2448.1,2448.0,1.36610161]
[1642899518410,0.04,2449.1,2448.7,1.4838111]
[1642899518610,0.04,2449.1,2448.1,2.6125053]
[1642899518810,0.00511582,2449.0,2448.1,2.6125053]
[1642899519212,0.00454739,2448.9,2448.1,2.6125053]
[1642899519612,0.00397897,2448.8,2448.5,1.43202931]
[1642899519879,0.00397897,2448.8,2448.1,2.6125053]
[1642899520066,0.00341055,2448.7,2448.1,2.6125053]
[1642899520481,0.00284212,2448.6,2448.1,2.6125053]
[1642899520877,0.0022737,2448.5,2448.2,1.52070134]
[1642899521269,0.04,2449.1,2448.4,2.66]
[1642899521568,0.00511582,2449.0,2448.4,3.7806]
[1642899521765,0.00511582,2449.0,2448.4,3.7206]
[1642899521967,0.00454739,2448.9,2448.4,3.7206]
[1642899522366,0.00397897,2448.8,2448.4,3.7206]
[1642899522766,0.00341055,2448.7,2448.6,1.23071549]
[1642899523367,0.04,2449.5,2449.1,0.0868211]
[1642899523628,8.10756196,2449.6,2449.1,0.0868211]
[1642899523629,0.61756196,2449.6,2449.2,1.95]
[1642899523823,0.04,2449.7,2449.1,0.8663211]
[1642899523824,0.04,2449.7,2449.1,1.2331211]
[1642899524026,0.04,2449.7,2449.3,1.50041291]
[1642899524027,0.00454738,2449.5,2449.3,1.50041291]
[1642899524224,7.47454738,2450.1,2449.4,2.6]
[1642899524425,0.04,2450.2,2449.4,2.6]
[1642899524623,0.00284212,2450.0,2449.4,2.6]
[1642899525023,0.0022737,2449.9,2449.4,2.6]
[1642899525223,0.0022737,2449.9,2449.3,1.56041291]
[1642899525424,0.00170527,2449.8,2449.3,1.56041291]
[1642899525624,0.00170527,2449.8,2449.1,0.0868211]
[1642899525825,0.49313685,2449.7,2449.1,0.0868211]
[1642899526026,0.57998866,2449.7,2449.2,0.00170527]
[1642899526231,0.57885181,2449.7,2449.2,0.00170527]
[1642899526424,0.492,2449.7,2449.2,0.00170527]
[1642899527027,7.56685181,2450.0,2449.2,0.00170527]
[1642899527028,7.48,2450.0,2449.3,0.06]
[1642899527231,0.00341054,2450.1,2449.3,0.06]
[1642899527477,0.0022737,2449.9,2449.3,0.06]
[1642899527975,0.00170527,2449.8,2449.3,0.06]
[1642899528373,0.00113685,2449.7,2449.3,0.06]
[1642899528573,0.00113685,2449.7,2449.3,23.98]
[1642899528781,0.00341054,2450.1,2450.0,1.45061746]
[1642899529376,0.00341054,2450.1,2449.7,2.68224352]
[1642899529573,0.00341054,2450.1,2449.6,3.9392]
[1642899530272,0.00341054,2450.1,2449.9,1.23654824]
[1642899531112,0.00341054,2450.1,2450.0,2.39207345]
[1642899531318,0.00341054,2450.1,2450.0,0.06]
[1642899531514,0.00341054,2450.1,2450.0,28.93336069]
[1642899531914,0.04,2450.6,2450.0,28.88336069]
[1642899532115,0.04,2450.6,2450.1,2.6]
[1642899532313,0.0022737,2450.5,2450.1,3.3717]